[Event "1st Gujarat GM Open 2018"]
[Site "Ahmedabad"]
[Date "2018.10.08"]
[Round "5"]
[White "Srija, Seshadri"]
[Black "Ashutosh, Kumar"]
[Result "1-0"]
[ECO "B76"]
[WhiteElo "2246"]
[BlackElo "2044"]
[Annotator "NA"]
[PlyCount "95"]
[EventDate "2018.10.05"]
[EventType "swiss"]
[EventCountry "IND"]
[SourceTitle "playchess.com"]
[Source "ChessBase"]
[SourceQuality "1"]
[TimeControl "5400+30"]

1. e4 {[%emt 0:00:00]} c5 {[%emt 0:00:00]} 2. Nf3 {[%emt 0:00:00]} d6 {[%emt 0:00:02]} 3. d4 {[%emt 0:00:00]} cxd4 {[%emt 0:00:04]} 4. Nxd4 {[%emt 0:00:09]} Nf6 {[%emt 0:00:09]} 5. Nc3 {[%emt 0:00:07]} g6 {[%emt 0:00:06]} 6. Be3 {[%emt 0:00:11]} Bg7 {[%emt 0:00:12]} 7. f3 {[%emt 0:00:12]} O-O {[%emt 0:00:04]} 8. Qd2 {[%emt 0:00:04]} Nc6 {[%emt 0:00:12]} 9. g4 {[%emt 0:00:19]} Be6 {[%emt 0:00:16]} 10. Nxe6 {[%emt 0:00:20]} fxe6 {[%emt 0:00:05]} 11. O-O-O {[%emt 0:00:11]} Ne5 {[%emt 0:07:40]} 12. Be2 {[%emt 0:00:28]} Qa5 {[%emt 0:03:23]} 13. Kb1 {[%emt 0:01:09]} Rac8 {[%emt 0:01:39]} 14. Nb5 {[%emt 0:13:45]} Qxd2 {[%emt 0:04:36]} 15. Rxd2 {[%emt 0:00:08]} a6 {[%emt 0:02:53]} 16. Nd4 {[%emt 0:00:51]} Kf7 {[%emt 0:01:55]} 17. b3 {[%emt 0:12:43]} Nc6 {[%emt 0:04:58]} 18. h4 {[%emt 0:05:12]} Nxd4 {[%emt 0:06:09]} 19. Bxd4 {[%emt 0:00:46]} Nd7 {[%emt 0:03:04]} 20. Be3 {[%emt 0:03:12]} Rc3 {[%emt 0:05:52]} 21. Bf2 {[%emt 0:01:00]} Be5 {[%emt 0:02:24]} 22. Rf1 {[%emt 0:11:29]} Bf4 {[%emt 0:03:10]} 23. Rdd1 {[%emt 0:00:09]} Rc6 {[%emt 0:06:58]} 24. Bd4 {[%emt 0:01:16]} Rfc8 {[%emt 0:00:00]} 25. c4 {[%emt 0:00:30]} e5 {[%emt 0:00:00]} 26. Bb2 {[%emt 0:00:30]} Nc5 {[%emt 0:00:00]} 27. g5 {[%emt 0:00:30]} Ne6 {[%emt 0:00:00]} 28. Rh1 {[%emt 0:00:30]} Ng7 {[%emt 0:00:00]} 29. b4 {[%emt 0:00:30]} Ke8 {[%emt 0:00:00]} 30. Bd3 {[%emt 0:00:30]} Nh5 {[%emt 0:00:00]} 31. a3 {[%emt 0:00:30]} e6 {[%emt 0:00:00]} 32. a4 {[%emt 0:00:30]} Be3 {[%emt 0:00:00]} 33. Ba3 {[%emt 0:29:47]} R6c7 {[%emt 0:31:05]} 34. Rh2 {[%emt 0:01:31]} Nf4 {[%emt 0:01:33]} 35. Bf1 {[%emt 0:00:25]} Ke7 {[%emt 0:01:25]} 36. Bb2 {[%emt 0:03:32]} a5 {[%emt 0:03:29]} 37. c5 {[%emt 0:01:52]} Bd4 {[%emt 0:03:00]} 38. cxd6+ {[%emt 0:03:19]} Kxd6 {[%emt 0:00:07]} 39. b5 {[%emt 0:05:20]} Ke7 {[%emt 0:01:32]} 40. b6 {[%emt 0:00:16]} Rc6 {[%emt 0:02:06]} 41. Bb5 {[%emt 0:00:08]} Rxb6 {[%emt 0:02:02]} 42. Rhd2 {[%emt 0:00:10]} Rc7 {[%emt 0:06:31]} 43. Bxd4 {[%emt 0:01:15]} exd4 {[%emt 0:00:02]} 44. Rxd4 {[%emt 0:00:01]} Rxb5+ {[%emt 0:00:35]} 45. axb5 {[%emt 0:00:26]} Ne2 {[%emt 0:00:04]} 46. b6 {[%emt 0:00:24]} Rc8 {[%emt 0:00:34]} 47. Rd7+ {[%emt 0:00:06]} Ke8 {[%emt 0:00:02]} 48. Rc7 {[%emt 0:00:38]} 1-0

[Event "1st Gujarat GM Open 2018"]
[Site "Ahmedabad"]
[Date "2018.10.08"]
[Round "5"]
[White "Bhambure, Shantanu"]
[Black "Pranesh M"]
[Result "0-1"]
[ECO "D30"]
[WhiteElo "2243"]
[BlackElo "2028"]
[Annotator "NA"]
[PlyCount "40"]
[EventDate "2018.10.05"]
[EventType "swiss"]
[EventCountry "IND"]
[SourceTitle "playchess.com"]
[Source "ChessBase"]
[SourceQuality "1"]
[TimeControl "5400+30"]

1. d4 {[%emt 0:00:00]} Nf6 {[%emt 0:00:00]} 2. c4 {[%emt 0:00:00]} e6 {[%emt 0:00:00]} 3. Nf3 {[%emt 0:00:00]} d5 {[%emt 0:00:00]} 4. Nbd2 {[%emt 0:00:17]} c6 {[%emt 0:00:00]} 5. e3 {[%emt 0:00:12]} Nbd7 {[%emt 0:00:03]} 6. Bd3 {[%emt 0:00:33]} Be7 {[%emt 0:00:14]} 7. O-O {[%emt 0:00:54]} O-O {[%emt 0:00:30]} 8. e4 {[%emt 0:00:30]} dxe4 {[%emt 0:00:00]} 9. Nxe4 {[%emt 0:00:24]} b6 {[%emt 0:00:15]} 10. Qc2 {[%emt 0:06:35]} Bb7 {[%emt 0:01:31]} 11. Rd1 {[%emt 0:04:47]} Nxe4 {[%emt 0:01:19]} 12. Bxe4 {[%emt 0:00:10]} Nf6 {[%emt 0:00:11]} 13. Bd3 {[%emt 0:01:04]} Qc7 {[%emt 0:01:47]} 14. c5 {[%emt 0:02:10]} bxc5 {[%emt 0:02:18]} 15. dxc5 {[%emt 0:00:43]} h6 {[%emt 0:00:23]} 16. b3 {[%emt 0:05:25]} Rad8 {[%emt 0:04:15]} 17. Bb2 {[%emt 0:01:44]} Qf4 {[%emt 0:11:36]} 18. b4 {[%emt 0:07:39]} Rd5 {[%emt 0:07:32]} 19. Bc4 {[%emt 0:03:00]} Rh5 {[%emt 0:01:45]} 20. Qe2 {[%emt 0:11:51]} Nd5 {[%emt 0:10:59]} 0-1

[Event "1st Gujarat GM Open 2018"]
[Site "Ahmedabad"]
[Date "2018.10.08"]
[Round "5"]
[White "Utsab Chatterjee"]
[Black "Fenil, Shah"]
[Result "1/2-1/2"]
[ECO "B44"]
[WhiteElo "2149"]
[BlackElo "2411"]
[Annotator "NA"]
[PlyCount "78"]
[EventDate "2018.10.05"]
[EventType "swiss"]
[EventCountry "IND"]
[SourceTitle "playchess.com"]
[Source "ChessBase"]
[SourceQuality "1"]
[TimeControl "5400+30"]

1. e4 {[%emt 0:00:00]} c5 {[%emt 0:00:00]} 2. Nf3 {[%emt 0:00:15]} e6 {[%emt 0:00:43]} 3. d4 {[%emt 0:00:25]} cxd4 {[%emt 0:00:06]} 4. Nxd4 {[%emt 0:00:19]} Nc6 {[%emt 0:00:04]} 5. Nxc6 {[%emt 0:00:30]} bxc6 {[%emt 0:00:26]} 6. Bd3 {[%emt 0:00:21]} Nf6 {[%emt 0:00:51]} 7. O-O {[%emt 0:00:15]} d6 {[%emt 0:03:40]} 8. Nc3 {[%emt 0:00:22]} Be7 {[%emt 0:00:45]} 9. f4 {[%emt 0:01:56]} O-O {[%emt 0:02:51]} 10. Kh1 {[%emt 0:00:40]} e5 {[%emt 0:03:19]} 11. Qe2 {[%emt 0:01:34] B80: Sicilian Scheveningen: 6 g3 and 6 Be3, including English Attack} (11. Bc4 Rb8 12. b3 Bg4 13. Qd3 d5 14. exd5 e4 15. Qg3 cxd5 16. Bxd5 Nxd5 17. Nxd5 Qxd5 18. Qxg4 Bf6 19. Rb1 {0-1 (47) Karthikeyan,M (2504)-Ivanisevic,I (2638) Dubai 2015}) 11... exf4 {[%emt 0:12:34]} 12. Bxf4 {[%emt 0:05:13]} Ng4 {[%emt 0:03:25]} 13. Bc4 {[%emt 0:03:15] White has an edge.} Bf6 {[%emt 0:02:54]} 14. h3 $146 {[%emt 0:07:25]} ({Predecessor:} 14. Rad1 Ne5 15. Bb3 Bg4 16. Bxe5 Bxe2 17. Bxf6 gxf6 18. Nxe2 Qe7 {½-½ (40) Ackermann,F (2086)-Kaufeld,J (2308) Oberhausen 2007}) 14... Ne5 {[%emt 0:00:33]} 15. Bb3 {[%emt 0:00:10]} a5 {[%emt 0:06:07] And now ...Ba6 would win.} 16. Qd2 {[%emt 0:04:34]} Qe7 {[%emt 0:03:17]} 17. a4 {[%emt 0:01:37]} Ba6 {[%emt 0:05:58]} 18. Rfe1 {[%emt 0:02:13]} Rfd8 {[%emt 0:02:26]} 19. Rad1 {[%emt 0:02:59]} Bh4 {[%emt 0:05:30]} 20. Rg1 {[%emt 0:00:00]} Bc4 {[%emt 0:00:00]} (20... c5 21. Rge1 (21. Nb5 $11) 21... Bc4 (21... Bxe1 $17 22. Qxe1 c4) 22. Rg1 {Precision: White = 32%, Black = 49%.}) (20... h6 $17) 21. Ne2 {[%emt 0:00:00]} Bxb3 {[%emt 0:00:00]} 22. cxb3 {[%emt 0:00:00]} Ng6 {[%emt 0:12:55]} 23. Nd4 {[%emt 0:16:00]} Qxe4 {[%emt 0:01:53]} 24. Bg5 {[%emt 0:00:09]} Re8 {[%emt 0:03:15]} 25. Bxh4 {[%emt 0:02:04]} Nxh4 {[%emt 0:00:01]} 26. Qc3 {[%emt 0:00:32]} Rec8 {[%emt 0:04:52]} 27. Qg3 {[%emt 0:07:40]} Ng6 {[%emt 0:01:16]} 28. Rge1 {[%emt 0:04:13]} Qf4 {[%emt 0:01:25]} 29. Qxf4 {[%emt 0:00:24]} Nxf4 {[%emt 0:00:01]} 30. Nf5 {[%emt 0:00:12]} Rcb8 {[%emt 0:01:55]} 31. Ne7+ {[%emt 0:00:33]} Kf8 {[%emt 0:01:36]} 32. Nxc6 {[%emt 0:00:50]} Rxb3 {[%emt 0:00:58]} 33. Rxd6 {[%emt 0:00:14]} Rxb2 {[%emt 0:02:17]} 34. Rd7 {[%emt 0:02:07]} Ng6 {[%emt 0:08:44]} 35. Kg1 {[%emt 0:05:00]} Rb6 {[%emt 0:05:12]} 36. Rc7 {[%emt 0:00:26]} Kg8 {[%emt 0:02:04]} 37. Rf1 {[%emt 0:01:23]} Rf8 {[%emt 0:01:32]} 38. Nxa5 {[%emt 0:01:14]} Ra6 {[%emt 0:00:53]} 39. Rf5 {[%emt 0:01:02]} f6 {[%emt 0:00:31]} 1/2-1/2

[Event "1st Gujarat GM Open 2018"]
[Site "Ahmedabad"]
[Date "2018.10.08"]
[Round "5"]
[White "Utsab Chatterjee"]
[Black "Fenil, Shah"]
[Result "1-0"]
[ECO "B44"]
[WhiteElo "2149"]
[BlackElo "2411"]
[Annotator "NA RC"]
[PlyCount "45"]
[EventDate "2018.10.05"]
[EventType "swiss"]
[EventCountry "IND"]
[SourceTitle "playchess.com"]
[Source "ChessBase"]
[SourceQuality "1"]
[TimeControl "5400+30"]

{[%evp 19,43,0,14,0,0,-9,30,-15,-11,-16,-16,-15,-6,-11,-11,-43,-35,-39,-41,-49,-60,-89,19,-112,2,0]} 1. e4 {[%emt 0:00:00]} c5 {[%emt 0:00:00]} 2. Nf3 {[%emt 0:00:15]} e6 {[%emt 0:00:43]} 3. d4 {[%emt 0:00:25]} cxd4 {[%emt 0:00:06]} 4. Nxd4 {[%emt 0:00:19]} Nc6 {[%emt 0:00:04]} 5. Nxc6 {[%emt 0:00:30]} bxc6 {[%emt 0:00:26]} 6. Bd3 {[%emt 0:00:21]} Nf6 {[%emt 0:00:51]} 7. O-O {[%emt 0:00:15]} d6 {[%emt 0:03:40]} 8. Nc3 {[%emt 0:00:22]} Be7 {[%emt 0:00:45]} 9. f4 {[%emt 0:01:56]} O-O {[%emt 0:02:51]} 10. Kh1 {[%emt 0:00:40]} e5 {[%emt 0:03:19]} 11. Qe2 {[%emt 0:01:34] B80: Sicilian Scheveningen: 6 g3 and 6 Be3, including English Attack} (11. Bc4 Rb8 12. b3 Bg4 13. Qd3 d5 14. exd5 e4 15. Qg3 cxd5 16. Bxd5 Nxd5 17. Nxd5 Qxd5 18. Qxg4 Bf6 19. Rb1 {0-1 (47) Karthikeyan,M (2504)-Ivanisevic,I (2638) Dubai 2015}) 11... exf4 {[%emt 0:12:34]} 12. Bxf4 {[%emt 0:05:13]} Ng4 {[%emt 0:03:25]} 13. Bc4 {[%emt 0:03:15] White has an edge.} Bf6 {[%emt 0:02:54]} 14. h3 $146 {[%emt 0:07:25]} ({Predecessor:} 14. Rad1 Ne5 15. Bb3 Bg4 16. Bxe5 Bxe2 17. Bxf6 gxf6 18. Nxe2 Qe7 {½-½ (40) Ackermann,F (2086)-Kaufeld,J (2308) Oberhausen 2007}) 14... Ne5 {[%emt 0:00:33]} 15. Bb3 {[%emt 0:00:10]} a5 {[%emt 0:06:07] And now ...Ba6 would win.} 16. Qd2 {[%emt 0:04:34]} Qe7 {[%emt 0:03:17]} 17. a4 {[%emt 0:01:37]} Ba6 {[%emt 0:05:58]} 18. Rfe1 {[%emt 0:02:13]} Rfd8 {[%emt 0:02:26]} 19. Rad1 {[%emt 0:02:59]} Bh4 {[%emt 0:05:30]} 20. Rg1 {[%emt 0:00:00]} c5 {[%emt 0:00:00]} (20... h6 $17) 21. Rge1 {[%emt 0:01:00]} (21. Nb5 $11) 21... Bc4 {[%emt 0:00:00]} (21... Bxe1 $17 22. Qxe1 c4) 22. Rg1 {[%emt 0:00:00] Precision: White = 32%, Black = 49%.} Ba6 {[%emt 0:00:00]} 23. Rge1 {[%emt 0:01:00]} 1-0

[Event "1st Gujarat GM Open 2018"]
[Site "Ahmedabad"]
[Date "2018.10.08"]
[Round "5"]
[White "Prasannaa.s"]
[Black "Konguvel, Ponnuswamy"]
[Result "1-0"]
[ECO "B08"]
[WhiteElo "2124"]
[BlackElo "2325"]
[Annotator "RC"]
[PlyCount "109"]
[EventDate "2018.10.05"]
[EventType "swiss"]
[EventCountry "IND"]
[SourceTitle "playchess.com"]
[Source "ChessBase"]
[SourceQuality "1"]
[TimeControl "5400+30"]

1. Nf3 {[%emt 0:00:06]} g6 {[%emt 0:00:01]} 2. e4 {[%emt 0:01:39]} d6 {[%emt 0:00:31]} 3. d4 {[%emt 0:00:06]} Bg7 {[%emt 0:00:06]} 4. Be2 {[%emt 0:00:09]} Nf6 {[%emt 0:00:30]} 5. Nc3 {[%emt 0:00:06]} a6 {[%emt 0:00:26]} 6. a4 {[%emt 0:01:49]} O-O {[%emt 0:00:32]} 7. O-O {[%emt 0:00:06]} Nc6 {[%emt 0:02:07]} 8. d5 {[%emt 0:05:03]} Na7 {[%emt 0:01:12]} 9. h3 {[%emt 0:01:46]} Bd7 {[%emt 0:00:24]} 10. e5 {[%emt 0:03:48]} dxe5 {[%emt 0:03:44]} 11. Nxe5 {[%emt 0:00:04]} Be8 {[%emt 0:00:36]} 12. Bf4 {[%emt 0:06:52]} c6 {[%emt 0:10:27]} 13. Bf3 {[%emt 0:01:01]} cxd5 {[%emt 0:00:21]} 14. Nxd5 {[%emt 0:00:31]} Nxd5 {[%emt 0:00:49]} 15. Bxd5 {[%emt 0:00:41]} Nc6 {[%emt 0:00:43]} 16. Re1 {[%emt 0:01:57]} e6 {[%emt 0:04:21]} 17. Bxc6 {[%emt 0:03:46]} Bxc6 {[%emt 0:01:44]} 18. Nxc6 {[%emt 0:02:49]} bxc6 {[%emt 0:00:04]} 19. Qxd8 {[%emt 0:02:11]} Rfxd8 {[%emt 0:00:09]} 20. Be5 {[%emt 0:00:06]} Rd2 {[%emt 0:04:12]} 21. Bxg7 {[%emt 0:02:01]} Kxg7 {[%emt 0:00:05]} 22. Rac1 {[%emt 0:00:05]} Rb8 {[%emt 0:24:22]} 23. b3 {[%emt 0:00:12]} Rb4 {[%emt 0:03:51]} 24. Re3 {[%emt 0:01:48]} Rf4 {[%emt 0:00:57]} 25. f3 {[%emt 0:01:16]} Rf5 {[%emt 0:00:00]} 26. Rd3 {[%emt 0:17:46]} Rd5 {[%emt 0:01:43]} 27. Kh2 {[%emt 0:00:25]} Kf6 {[%emt 0:03:51]} 28. Rc3 {[%emt 0:01:44]} Rg5 {[%emt 0:03:05]} 29. Rg1 {[%emt 0:00:08]} c5 {[%emt 0:00:10]} 30. h4 {[%emt 0:01:13]} Re5 {[%emt 0:01:05]} 31. Kg3 {[%emt 0:01:00]} h5 {[%emt 0:01:03]} 32. Rc4 {[%emt 0:07:09]} Ke7 {[%emt 0:01:24]} 33. Kf4 {[%emt 0:01:04]} Kd6 {[%emt 0:02:41]} 34. g4 {[%emt 0:02:30]} hxg4 {[%emt 0:03:51]} 35. fxg4 {[%emt 0:00:08]} Ree2 {[%emt 0:02:26]} 36. Kg5 {[%emt 0:12:33]} Rf2 {[%emt 0:15:21]} 37. Rh1 {[%emt 0:01:08]} Rd5+ {[%emt 0:00:54]} 38. Kh6 {[%emt 0:00:08]} Ke7 {[%emt 0:00:11]} 39. Kg7 {[%emt 0:01:06]} Rg2 {[%emt 0:01:20]} 40. Rf1 {[%emt 0:01:16]} f5 {[%emt 0:00:24]} 41. g5 {[%emt 0:00:50]} e5 {[%emt 0:00:06]} 42. Kxg6 {[%emt 0:00:11]} f4 {[%emt 0:00:10]} 43. Re4 {[%emt 0:00:09]} Kd6 {[%emt 0:01:11]} 44. h5 {[%emt 0:01:46]} Rd4 {[%emt 0:01:45]} 45. Rxd4+ {[%emt 0:00:06]} cxd4 {[%emt 0:00:02]} 46. h6 {[%emt 0:00:18]} Rxc2 {[%emt 0:00:39]} 47. h7 {[%emt 0:00:06]} Rh2 {[%emt 0:00:47]} 48. Kg7 {[%emt 0:00:08]} Ke6 {[%emt 0:00:40]} 49. b4 {[%emt 0:02:07]} d3 {[%emt 0:00:46]} 50. b5 {[%emt 0:00:06]} axb5 {[%emt 0:00:03]} 51. axb5 {[%emt 0:00:04]} Kd6 {[%emt 0:01:39]} 52. h8=Q {[%emt 0:00:22]} Rxh8 {[%emt 0:00:03]} 53. Kxh8 {[%emt 0:00:02]} e4 {[%emt 0:00:13]} 54. b6 {[%emt 0:02:09]} e3 {[%emt 0:02:12]} 55. Rb1 {[%emt 0:00:12]} 1-0

[Event "1st Gujarat GM Open 2018"]
[Site "Ahmedabad"]
[Date "2018.10.08"]
[Round "5"]
[White "Mahindrakar Indrajeet"]
[Black "Saurabh Anand"]
[Result "0-1"]
[ECO "C85"]
[WhiteElo "2107"]
[BlackElo "2303"]
[Annotator "NA"]
[PlyCount "74"]
[EventDate "2018.10.05"]
[EventType "swiss"]
[EventCountry "IND"]
[SourceTitle "playchess.com"]
[Source "ChessBase"]
[SourceQuality "1"]
[TimeControl "5400+30"]

1. e4 {[%emt 0:00:00]} e5 {[%emt 0:00:00]} 2. Nf3 {[%emt 0:00:12]} Nc6 {[%emt 0:00:00]} 3. Bb5 {[%emt 0:00:30]} a6 {[%emt 0:00:09]} 4. Ba4 {[%emt 0:00:12]} Nf6 {[%emt 0:00:09]} 5. O-O {[%emt 0:00:40]} Be7 {[%emt 0:00:09]} 6. Bxc6 {[%emt 0:00:48]} dxc6 {[%emt 0:00:09]} 7. Qe1 {[%emt 0:00:23]} Nd7 {[%emt 0:00:36]} 8. b3 {[%emt 0:01:18]} O-O {[%emt 0:01:50]} 9. Bb2 {[%emt 0:00:33]} f6 {[%emt 0:00:47]} 10. d4 {[%emt 0:01:53]} exd4 {[%emt 0:06:03]} 11. Nxd4 {[%emt 0:00:37]} Ne5 {[%emt 0:03:58]} 12. Nd2 {[%emt 0:10:12]} Bd6 {[%emt 0:06:22]} 13. Kh1 {[%emt 0:09:01]} Re8 {[%emt 0:04:10]} 14. f4 {[%emt 0:10:57]} Ng6 {[%emt 0:02:04]} 15. Qg3 {[%emt 0:01:27]} c5 {[%emt 0:05:50]} 16. Nf5 {[%emt 0:04:27]} Bxf5 {[%emt 0:13:14]} 17. exf5 {[%emt 0:00:40]} Ne7 {[%emt 0:00:36]} 18. Qf3 {[%emt 0:06:16]} Qd7 {[%emt 0:04:06]} 19. Qxb7 {[%emt 0:08:19]} Nc6 {[%emt 0:02:24]} 20. Nc4 {[%emt 0:38:23]} Ra7 {[%emt 0:00:42]} 21. Nb6 {[%emt 0:02:40]} cxb6 {[%emt 0:00:32]} 22. Qxd7 {[%emt 0:00:12]} Rxd7 {[%emt 0:00:05]} 23. Rf2 {[%emt 0:00:27]} Rde7 {[%emt 0:00:31]} 24. g4 {[%emt 0:00:17]} Re2 {[%emt 0:01:07]} 25. Raf1 {[%emt 0:00:17]} Nd4 {[%emt 0:02:01]} 26. Bxd4 {[%emt 0:00:53]} cxd4 {[%emt 0:00:08]} 27. Kg2 {[%emt 0:00:06]} Bc5 {[%emt 0:01:35]} 28. b4 {[%emt 0:01:08]} Bxb4 {[%emt 0:00:14]} 29. Rd1 {[%emt 0:00:20]} Bc5 {[%emt 0:01:12]} 30. Rd3 {[%emt 0:00:11]} Rxf2+ {[%emt 0:00:26]} 31. Kxf2 {[%emt 0:00:02]} Re4 {[%emt 0:00:09]} 32. h3 {[%emt 0:01:08]} Rxf4+ {[%emt 0:00:15]} 33. Kg2 {[%emt 0:00:29]} Re4 {[%emt 0:00:22]} 34. Rd2 {[%emt 0:00:10]} Re3 {[%emt 0:00:22]} 35. h4 {[%emt 0:00:18]} Ra3 {[%emt 0:00:19]} 36. Re2 {[%emt 0:00:19]} Rxa2 {[%emt 0:00:11]} 37. Kf3 {[%emt 0:00:08]} d3 {[%emt 0:00:14]} 0-1

[Event "1st Gujarat GM Open 2018"]
[Site "Ahmedabad"]
[Date "2018.10.08"]
[Round "5"]
[White "Manish Anto Cristiano F"]
[Black "Kunal, M.."]
[Result "*"]
[ECO "B19"]
[WhiteElo "1961"]
[BlackElo "2270"]
[Annotator "ChessBase"]
[PlyCount "60"]
[EventDate "2018.10.05"]
[EventType "swiss"]
[EventCountry "IND"]
[SourceTitle "playchess.com"]
[Source "ChessBase"]
[SourceQuality "1"]
[TimeControl "5400+30"]

1. e4 {[%emt 0:00:00]} c6 {[%emt 0:00:00]} 2. d4 {[%emt 0:00:05]} d5 {[%emt 0:00:00]} 3. Nc3 {[%emt 0:00:31]} dxe4 {[%emt 0:00:00]} 4. Nxe4 {[%emt 0:00:26]} Bf5 {[%emt 0:00:00]} 5. Ng3 {[%emt 0:00:32]} Bg6 {[%emt 0:00:00]} 6. h4 {[%emt 0:00:32]} h6 {[%emt 0:00:04]} 7. Nf3 {[%emt 0:01:29]} Nd7 {[%emt 0:00:06]} 8. h5 {[%emt 0:01:28]} Bh7 {[%emt 0:00:05]} 9. Bd3 {[%emt 0:01:30]} Bxd3 {[%emt 0:00:06]} 10. Qxd3 {[%emt 0:01:47]} e6 {[%emt 0:00:05]} 11. Bd2 {[%emt 0:01:13]} a5 {[%emt 0:00:06]} 12. O-O-O {[%emt 0:03:55]} Bb4 {[%emt 0:00:46]} 13. Ne4 {[%emt 0:04:10]} Ngf6 {[%emt 0:01:38]} 14. Bf4 {[%emt 0:02:16]} Nxe4 {[%emt 0:00:57]} 15. Qxe4 {[%emt 0:00:47]} Nf6 {[%emt 0:01:24]} 16. Qe5 {[%emt 0:03:55]} a4 {[%emt 0:06:01]} 17. a3 {[%emt 0:00:55]} Be7 {[%emt 0:00:08]} 18. g4 {[%emt 0:04:41]} Qd5 {[%emt 0:21:35]} 19. Qxd5 {[%emt 0:02:28]} cxd5 {[%emt 0:01:25]} 20. Ne5 {[%emt 0:01:21]} Ne4 {[%emt 0:00:08]} 21. Rhf1 {[%emt 0:00:31]} Rc8 {[%emt 0:01:37]} 22. f3 {[%emt 0:00:40]} Nd6 {[%emt 0:00:11]} 23. Kb1 {[%emt 0:00:26]} Nc4 {[%emt 0:00:45]} 24. Nxc4 {[%emt 0:05:25]} Rxc4 {[%emt 0:00:05]} 25. c3 {[%emt 0:01:53]} Kd7 {[%emt 0:00:10]} 26. Rde1 {[%emt 0:00:30]} Rcc8 {[%emt 0:01:00]} 27. Re2 {[%emt 0:00:51]} Rcg8 {[%emt 0:00:08]} 28. Rh1 {[%emt 0:02:12]} Bd6 {[%emt 0:02:09]} 29. Bxd6 {[%emt 0:04:09]} Kxd6 {[%emt 0:00:06]} 30. Kc2 {[%emt 0:06:29]} Kd7 {[%emt 0:00:54]} *

[Event "1st Gujarat GM Open 2018"]
[Site "Ahmedabad"]
[Date "2018.10.08"]
[Round "5"]
[White "Sudarshan Bhat"]
[Black "Jeet, Jain"]
[Result "0-1"]
[ECO "C77"]
[WhiteElo "1840"]
[BlackElo "2185"]
[Annotator "NA"]
[PlyCount "128"]
[EventDate "2018.10.05"]
[EventType "swiss"]
[EventCountry "IND"]
[SourceTitle "playchess.com"]
[Source "ChessBase"]
[SourceQuality "1"]
[TimeControl "5400+30"]

1. e4 {[%emt 0:00:00]} e5 {[%emt 0:02:30]} 2. Nf3 {[%emt 0:00:00]} Nc6 {[%emt 0:00:25]} 3. Bb5 {[%emt 0:00:10]} a6 {[%emt 0:00:11]} 4. Ba4 {[%emt 0:00:09]} Nf6 {[%emt 0:00:06]} 5. Qe2 {[%emt 0:00:33]} b5 {[%emt 0:03:31]} 6. Bb3 {[%emt 0:00:06]} Bc5 {[%emt 0:00:08]} 7. c3 {[%emt 0:00:25]} d6 {[%emt 0:00:07]} 8. O-O {[%emt 0:00:16]} O-O {[%emt 0:01:00]} 9. d3 {[%emt 0:00:46]} h6 {[%emt 0:00:13]} 10. Be3 {[%emt 0:00:41]} Bxe3 {[%emt 0:01:37]} 11. fxe3 {[%emt 0:00:06]} d5 {[%emt 0:00:15]} 12. exd5 {[%emt 0:01:42]} Nxd5 {[%emt 0:00:24]} 13. Nbd2 {[%emt 0:00:20]} Be6 {[%emt 0:01:57]} 14. d4 {[%emt 0:07:04]} exd4 {[%emt 0:02:07]} 15. exd4 {[%emt 0:01:45]} Re8 {[%emt 0:01:07]} 16. Rae1 {[%emt 0:02:55]} Nf4 {[%emt 0:18:40]} 17. Qe4 {[%emt 0:14:08]} Bxb3 {[%emt 0:09:09]} 18. Qxf4 {[%emt 0:04:57]} Bd5 19. Re2 Rxe2 {[%emt 0:01:23]} 20. Re1 {[%emt 0:01:03]} Bb3 21. Rf1 Re1 {[%emt 0:01:00]} 22. Rxe1 {[%emt 0:01:00]} Bd5 {[%emt 0:00:09]} 23. Rf1 Bb3 {[%emt 0:00:30]} 24. Re1 {[%emt 0:01:00]} Bd5 {[%emt 0:00:30]} 25. b3 {[%emt 0:19:09]} Rb8 {[%emt 0:05:57]} 26. Ne4 {[%emt 0:02:01]} a5 {[%emt 0:01:00]} 27. Ne5 {[%emt 0:05:09]} a4 {[%emt 0:02:28]} 28. c4 {[%emt 0:16:05]} bxc4 {[%emt 0:06:52]} 29. bxc4 {[%emt 0:03:50]} Nxe5 {[%emt 0:06:05]} 30. dxe5 {[%emt 0:00:29]} Be6 {[%emt 0:03:35]} 31. Nc5 {[%emt 0:10:05]} Qe7 {[%emt 0:00:40]} 32. Nxe6 {[%emt 0:01:50]} Qxe6 {[%emt 0:00:05]} 33. Qd4 {[%emt 0:02:24]} Re8 {[%emt 0:01:53]} 34. Qd5 {[%emt 0:01:43]} Kh7 {[%emt 0:07:19]} 35. h3 {[%emt 0:02:21]} f6 {[%emt 0:01:10]} 36. Qc5 {[%emt 0:03:01]} fxe5 {[%emt 0:07:46]} 37. Qxc7 {[%emt 0:00:32]} e4 {[%emt 0:00:02]} 38. Re3 {[%emt 0:00:23]} Qf6 {[%emt 0:01:01]} 39. a3 {[%emt 0:00:44]} Qd4 {[%emt 0:00:17]} 40. Qf4 {[%emt 0:00:20]} Qxc4 {[%emt 0:00:16]} 41. Kh1 {[%emt 0:00:29]} Qd4 {[%emt 0:01:00]} 42. Kh2 {[%emt 0:00:32]} Kg8 {[%emt 0:00:20]} 43. Kh1 {[%emt 0:00:17]} Kh7 {[%emt 0:00:40]} 44. Kh2 {[%emt 0:00:05]} Qe5 {[%emt 0:00:51]} 45. Kg3 {[%emt 0:01:00]} Qd5 {[%emt 0:05:32]} 46. Kh2 {[%emt 0:00:28]} Re7 {[%emt 0:00:08]} 47. Kh1 {[%emt 0:00:38]} Qe5 {[%emt 0:03:53]} 48. Qf2 {[%emt 0:00:40]} Rc7 {[%emt 0:00:19]} 49. Qe1 {[%emt 0:00:32]} Rc4 {[%emt 0:00:17]} 50. Qb1 {[%emt 0:00:22]} Kh8 {[%emt 0:00:23]} 51. Qe1 {[%emt 0:00:30]} Qc7 {[%emt 0:01:59]} 52. Qg3 {[%emt 0:00:10]} Qxg3 {[%emt 0:01:17]} 53. Rxg3 {[%emt 0:00:02]} Kg8 {[%emt 0:00:17]} 54. Kg1 {[%emt 0:00:52]} Kf7 {[%emt 0:00:01]} 55. h4 {[%emt 0:00:42]} g6 {[%emt 0:00:30]} 56. Kf2 {[%emt 0:00:04]} Kf6 {[%emt 0:00:16]} 57. Re3 {[%emt 0:01:03]} Kf5 {[%emt 0:00:17]} 58. Rh3 {[%emt 0:00:47]} Rc2+ {[%emt 0:00:17]} 59. Kf1 {[%emt 0:00:15]} Kf4 {[%emt 0:00:31]} 60. Kg1 {[%emt 0:00:41]} e3 {[%emt 0:03:11]} 61. Rf3+ {[%emt 0:00:14]} Ke4 {[%emt 0:00:01]} 62. Kf1 {[%emt 0:00:18]} Kd3 {[%emt 0:00:04]} 63. g4 {[%emt 0:00:23]} Kd2 {[%emt 0:00:09]} 64. g5 {[%emt 0:00:53]} e2+ {[%emt 0:00:05]} 0-1